Workbook

Sheet Sheet1
C3: x | D3: lx | F3: $x$ | G3: $l_x$ | H3: $q^w_x$ | I3: $\mu^d_x$ | J3: $\mu^w_x$ | K3: $(aq)_x$ | L3: $(al)_x$ | M3: $(ad)_x$ | N3: $(ad)^d_x$ | O3: $(ad)^w_x$ | Q3: =F3 -> $x$ | R3: $P_t$ | S3: $e_t$ | T3: $i(P_t - e_t)$ | U3: $D_t. (aq)^d_x$ | V3: $W_t.(aq)^w_x$ | W3: $S_t.(ap)_x$ | X3: $CF_t$ | Y3: $_t(ap)_x$ | Z3: $E(CF_t)$
C4: 60 | D4: 100000 | F4: =C4 -> 60 | G4: =D4 -> 100000 | H4: 0.3 | I4: =-LN(G5/G4) -> 0.01005 | J4: =-LN(1-H4) -> 0.35667 | K4: =1-EXP(-I4-J4) -> 0.30700 | L4: =G4 -> 100,000.0 | M4: =L4-L5 -> 30,700.0 | N4: =M4*I4/(I4+J4) -> 841.4 | O4: =M4*J4/(I4+J4) -> 29,858.6 | Q4: =C4 -> 60 | R4: 1000 | S4: 100.00 | T4: =0.03*(R4-S4) -> 27.00 | U4: =5000*N4/L4 -> 42.07 | V4: =SUM(R$4:R4)*0.5*O4/L4 -> 149.29 | W4: 0 | X4: =R4-S4+T4-U4-V4-W4 -> 735.64 | Y4: =L4/L$4 -> 1.0000 | Z4: =X4*Y4 -> 735.64
C5: 61 | D5: =D4*0.99 -> 99000 | F5: =C5 -> 61 | G5: 99000 | H5: 0.2 | I5: =-LN(G6/G5) -> 0.01220 | J5: =-LN(1-H5) -> 0.22314 | K5: =1-EXP(-I5-J5) -> 0.20970 | L5: =L4*(1-K4) -> 69,300.0 | M5: =L5-L6 -> 14,532.0 | N5: =M5*I5/(I5+J5) -> 753.0 | O5: =M5*J5/(I5+J5) -> 13,779.0 | Q5: 61 | R5: 1000 | S5: 20.00 | T5: =0.03*(R5-S5) -> 29.40 | U5: =5000*N5/L5 -> 54.33 | V5: =SUM(R$4:R5)*0.5*O5/L5 -> 198.83 | W5: 0 | X5: =R5-S5+T5-U5-V5-W5 -> 756.24 | Y5: =L5/L$4 -> 0.6930 | Z5: =X5*Y5 -> 524.07
C6: 62 | D6: 97800 | F6: 62 | G6: 97800 | H6: 0.2 | I6: 0.01546 | J6: 0.22314 | K6: 0.21227 | L6: =L5*(1-K5) -> 54,768.0 | M6: 11,625.6 | N6: 753.1 | O6: 10,872.5 | Q6: 62 | R6: 1000 | S6: =S5*1.05 -> 21.00 | T6: 29.37 | U6: 68.75 | V6: =SUM(R$4:R6)*0.5*O6/L6 -> 297.78 | W6: 0 | X6: 641.84 | Y6: 0.5477 | Z6: 351.52
C7: 63 | D7: 96300 | F7: 63 | G7: 96300 | H7: 0.1 | I7: 0.01781 | J7: 0.10536 | K7: 0.11589 | L7: 43,142.4 | M7: 4,999.7 | N7: 723.0 | O7: 4,276.7 | Q7: 63 | R7: 1000 | S7: =S6*1.05 -> 22.05 | T7: 29.34 | U7: 83.79 | V7: =SUM(R$4:R7)*0.5*O7/L7 -> 198.26 | W7: 0 | X7: 725.24 | Y7: 0.4314 | Z7: 312.89
C8: 64 | D8: 94600 | F8: 64 | G8: 94600 | H8: 0.01 | I8: 0.01706 | J8: 0.01005 | K8: 0.02674 | L8: 38,142.7 | M8: 1,020.1 | N8: 641.9 | O8: 378.2 | Q8: 64 | R8: 1000 | S8: 23.15 | T8: 29.31 | U8: 84.14 | V8: =SUM(R$4:R8)*0.5*O8/L8 -> 24.79 | W8: =5000*L9/L8 -> 4,866.28 | X8: -3,969.06 | Y8: 0.3814 | Z8: -1,513.91
C9: 65 | D9: 93000 | F9: 65 | G9: 93000 | H9: N/A | L9: 37,122.6
